[Event "Titled Tuesday Blitz May 31 Early 2022"]
[White "Kvaloy, Aksel Bu"]
[Black "Milanovic, Marko"]
[WhiteFideId "1528815"]
[BlackFideId "980129"]
[WhiteElo "2053"]
[BlackElo "2151"]
[Result "0-1"]
[Round "04"]
[TimeControl "180+1"]
[Date "2022.06.01"]
[WhiteClock "0:00:23"]
[BlackClock "0:00:20"]

1. e4 {[%clk 0:02:51]}  e5 {[%clk 0:03:00]} 2. Nf3 {[%clk 0:02:51]}  Nc6 {[%clk 0:03:00]} 3. Bb5 {[%clk 0:02:50]}  a6 {[%clk 0:03:00]} 4. Ba4 {[%clk 0:02:49]}  Nf6 {[%clk 0:02:59]} 5. O-O {[%clk 0:02:49]}  Be7 {[%clk 0:02:59]} 6. Re1 {[%clk 0:02:47]}  b5 {[%clk 0:03:00]} 7. Bb3 {[%clk 0:02:47]}  d6 {[%clk 0:03:00]} 8. c3 {[%clk 0:02:46]}  O-O {[%clk 0:03:00]} 9. h3 {[%clk 0:02:42]}  Na5 {[%clk 0:03:00]} 10. Bc2 {[%clk 0:02:42]}  c5 {[%clk 0:03:01]} 11. d4 {[%clk 0:02:41]}  Qc7 {[%clk 0:03:01]} 12. d5 {[%clk 0:02:40]}  c4 {[%clk 0:03:01]} 13. Nbd2 {[%clk 0:02:35]}  Nb7 {[%clk 0:03:00]} 14. Nf1 {[%clk 0:02:32]}  Nc5 {[%clk 0:02:59]} 15. Ng3 {[%clk 0:02:15]}  g6 {[%clk 0:02:59]} 16. b4 {[%clk 0:02:13]}  cxb3 {[%clk 0:02:58]} 17. axb3 {[%clk 0:02:14]}  Bd7 {[%clk 0:02:50]} 18. b4 {[%clk 0:01:58]}  Na4 {[%clk 0:02:46]} 19. Bxa4 {[%clk 0:01:56]}  bxa4 {[%clk 0:02:45]} 20. Bb2 {[%clk 0:01:56]}  Rfc8 {[%clk 0:02:44]} 21. Nd2 {[%clk 0:01:55]}  Qb6 {[%clk 0:02:40]} 22. Ngf1 {[%clk 0:01:48]}  a5 {[%clk 0:02:40]} 23. Ba3 {[%clk 0:01:44]}  axb4 {[%clk 0:02:40]} 24. Bxb4 {[%clk 0:01:44]}  Qb5 {[%clk 0:02:18]} 25. Qc1 {[%clk 0:01:35]}  Qd3 {[%clk 0:02:13]} 26. Qa3 {[%clk 0:01:34]}  Ra6 {[%clk 0:02:08]} 27. Re3 {[%clk 0:01:31]}  Qb5 {[%clk 0:02:09]} 28. c4 {[%clk 0:01:30]}  Qb7 {[%clk 0:02:06]} 29. Rc1 {[%clk 0:01:29]}  Rb6 {[%clk 0:02:04]} 30. Ba5 {[%clk 0:01:17]}  Ra6 {[%clk 0:01:58]} 31. Bb4 {[%clk 0:01:17]}  Rb8 {[%clk 0:01:56]} 32. Bc3 {[%clk 0:01:10]}  Bd8 {[%clk 0:01:55]} 33. Ree1 {[%clk 0:01:08]}  Bb6 {[%clk 0:01:52]} 34. Rb1 {[%clk 0:01:06]}  Qc7 {[%clk 0:01:52]} 35. Bb4 {[%clk 0:01:04]}  Bd4 {[%clk 0:01:39]} 36. Nf3 {[%clk 0:00:45]}  Bb6 {[%clk 0:01:23]} 37. Bxd6 {[%clk 0:00:41]}  Bxf2+ {[%clk 0:01:07]} 38. Kxf2 {[%clk 0:00:40]}  Rxd6 {[%clk 0:01:07]} 39. c5 {[%clk 0:00:38]}  Rxb1 {[%clk 0:01:02]} 40. Rxb1 {[%clk 0:00:39]}  Nxe4+ {[%clk 0:01:00]} 41. Ke3 {[%clk 0:00:35]}  Qxc5+ {[%clk 0:00:44]} 42. Qxc5 {[%clk 0:00:34]}  Nxc5 {[%clk 0:00:45]} 43. Nxe5 {[%clk 0:00:29]}  Rxd5 {[%clk 0:00:42]} 44. Nxd7 {[%clk 0:00:28]}  Rxd7 {[%clk 0:00:40]} 45. Rb5 {[%clk 0:00:25]}  Rd3+ {[%clk 0:00:37]} 46. Ke2 {[%clk 0:00:24]}  Rc3 {[%clk 0:00:36]} 47. Nd2 {[%clk 0:00:15]}  a3 {[%clk 0:00:33]} 48. Ra5 {[%clk 0:00:10]}  Nb3 {[%clk 0:00:26]} 49. Nb1 {[%clk 0:00:07]}  Rc2+ {[%clk 0:00:17]} 50. Kd3 {[%clk 0:00:06]}  Nxa5 {[%clk 0:00:18]} 51. Kxc2 {[%clk 0:00:06]}  a2 {[%clk 0:00:19]} 52. Kb2 {[%clk 0:00:03]}  axb1=Q+ {[%clk 0:00:19]} 53. Kxb1 {[%clk 0:00:04]}  Kg7 {[%clk 0:00:19]} 54. Kc1 {[%clk 0:00:04]}  Kf6 {[%clk 0:00:20]} 55. Kd1 {[%clk 0:00:05]}  Ke5 {[%clk 0:00:20]} 56. Ke1 {[%clk 0:00:06]}  Kf4 {[%clk 0:00:21]} 57. Kf2 {[%clk 0:00:07]}  Nc4 {[%clk 0:00:21]} 58. Kg1 {[%clk 0:00:08]}  Kg3 {[%clk 0:00:21]} 59. Kh1 {[%clk 0:00:09]}  Ne3 {[%clk 0:00:22]} 60. Kg1 {[%clk 0:00:10]}  Nxg2 {[%clk 0:00:23]} 61. Kh1 {[%clk 0:00:11]}  Kxh3 {[%clk 0:00:23]} 62. Kg1 {[%clk 0:00:12]}  Kg3 {[%clk 0:00:24]} 63. Kh1 {[%clk 0:00:13]}  h5 {[%clk 0:00:25]} 64. Kg1 {[%clk 0:00:13]}  h4 {[%clk 0:00:26]} 65. Kh1 {[%clk 0:00:14]}  h3 {[%clk 0:00:26]} 66. Kg1 {[%clk 0:00:15]}  f5 {[%clk 0:00:27]} 67. Kh1 {[%clk 0:00:16]}  f4 {[%clk 0:00:28]} 68. Kg1 {[%clk 0:00:17]}  f3 {[%clk 0:00:28]} 69. Kh1 {[%clk 0:00:18]}  Nf4 {[%clk 0:00:28]} 70. Kg1 {[%clk 0:00:19]}  g5 {[%clk 0:00:24]} 71. Kh1 {[%clk 0:00:20]}  g4 {[%clk 0:00:24]} 72. Kg1 {[%clk 0:00:21]}  Kh4 {[%clk 0:00:25]} 73. Kh1 {[%clk 0:00:22]}  g3 {[%clk 0:00:25]} 74. Kg1 {[%clk 0:00:22]}  g2 {[%clk 0:00:19]} 75. Kh2 {[%clk 0:00:21]}  Kg5 {[%clk 0:00:19]} 76. Kg1 {[%clk 0:00:22]}  Ne2+ {[%clk 0:00:19]} 77. Kh2 {[%clk 0:00:23]}  g1=Q+ {[%clk 0:00:20]} 78. Kxh3 {[%clk 0:00:23]}  Qg3# {[%clk 0:00:20]} 0-1


[Site "https://www.chess.com"]

[Event "Titled Tuesday Blitz May 31 Early 2022"]
[White "Makarian, Rudik"]
[Black "Tasev, Dejan"]
[WhiteFideId "44105681"]
[BlackFideId "936618"]
[WhiteElo "2419"]
[BlackElo "2253"]
[Result "1-0"]
[Round "04"]
[TimeControl "180+1"]
[Date "2022.06.01"]
[WhiteClock "0:00:17"]
[BlackClock "0:00:05"]

1. d3 {[%clk 0:03:00]}  Nf6 {[%clk 0:02:59]} 2. g3 {[%clk 0:03:00]}  g6 {[%clk 0:02:59]} 3. Bg2 {[%clk 0:03:01]}  Bg7 {[%clk 0:02:59]} 4. f4 {[%clk 0:03:02]}  O-O {[%clk 0:02:59]} 5. Nf3 {[%clk 0:03:03]}  b6 {[%clk 0:02:59]} 6. O-O {[%clk 0:03:03]}  Bb7 {[%clk 0:02:59]} 7. e4 {[%clk 0:03:04]}  c5 {[%clk 0:02:59]} 8. Kh1 {[%clk 0:03:03]}  d6 {[%clk 0:02:59]} 9. Nc3 {[%clk 0:03:01]}  Nc6 {[%clk 0:02:58]} 10. h3 {[%clk 0:02:59]}  Ne8 {[%clk 0:02:57]} 11. g4 {[%clk 0:02:59]}  Nc7 {[%clk 0:02:57]} 12. f5 {[%clk 0:02:59]}  d5 {[%clk 0:02:42]} 13. Bf4 {[%clk 0:02:54]}  dxe4 {[%clk 0:02:35]} 14. dxe4 {[%clk 0:02:51]}  Nd4 {[%clk 0:02:09]} 15. e5 {[%clk 0:02:46]}  gxf5 {[%clk 0:01:54]} 16. gxf5 {[%clk 0:02:23]}  Nxf5 {[%clk 0:01:41]} 17. Qe1 {[%clk 0:02:22]}  Ne6 {[%clk 0:01:39]} 18. Rd1 {[%clk 0:02:22]}  Nxf4 {[%clk 0:01:13]} 19. Rxd8 {[%clk 0:02:15]}  Raxd8 {[%clk 0:01:12]} 20. Nh4 {[%clk 0:01:42]}  Nxg2 {[%clk 0:00:56]} 21. Nxg2 {[%clk 0:01:43]}  Nd4 {[%clk 0:00:45]} 22. Qh4 {[%clk 0:01:12]}  Nxc2 {[%clk 0:00:30]} 23. Ne4 {[%clk 0:00:53]}  Rd4 {[%clk 0:00:22]} 24. Rf4 {[%clk 0:00:53]}  Rxe4 {[%clk 0:00:14]} 25. Rxe4 {[%clk 0:00:54]}  Rd8 {[%clk 0:00:14]} 26. Kh2 {[%clk 0:00:46]}  Rd2 {[%clk 0:00:12]} 27. Rg4 {[%clk 0:00:43]}  Ne3 {[%clk 0:00:09]} 28. Qxe7 {[%clk 0:00:31]}  Nxg4+ {[%clk 0:00:07]} 29. hxg4 {[%clk 0:00:32]}  Rxg2+ {[%clk 0:00:07]} 30. Kh3 {[%clk 0:00:33]}  Be4 {[%clk 0:00:07]} 31. Qd8+ {[%clk 0:00:29]}  Bf8 {[%clk 0:00:07]} 32. Qg5+ {[%clk 0:00:30]}  Bg7 {[%clk 0:00:08]} 33. Qd8+ {[%clk 0:00:24]}  Bf8 {[%clk 0:00:07]} 34. e6 {[%clk 0:00:24]}  fxe6 {[%clk 0:00:07]} 35. Qd7 {[%clk 0:00:23]}  Bd5 {[%clk 0:00:07]} 36. Qxa7 {[%clk 0:00:22]}  Rxb2 {[%clk 0:00:08]} 37. a4 {[%clk 0:00:22]}  c4 {[%clk 0:00:08]} 38. Qc7 {[%clk 0:00:21]}  Rb3+ {[%clk 0:00:07]} 39. Kh4 {[%clk 0:00:22]}  c3 {[%clk 0:00:08]} 40. Kg5 {[%clk 0:00:18]}  h6+ {[%clk 0:00:07]} 41. Kf6 {[%clk 0:00:17]}  Bc5 {[%clk 0:00:05]} 42. Qg7# {[%clk 0:00:17]} 1-0


[Site "https://www.chess.com"]

[Event "Titled Tuesday Blitz May 31 Early 2022"]
[White "Maltsevskaya, Aleksandra"]
[Black "Chigaev, Maksim"]
[WhiteFideId "24174041"]
[BlackFideId "4108116"]
[WhiteElo "2235"]
[BlackElo "2457"]
[Result "0-1"]
[Round "04"]
[TimeControl "180+1"]
[Date "2022.05.31"]
[WhiteClock "0:00:01"]
[BlackClock "0:00:21"]

1. e4 {[%clk 0:03:00]}  e6 {[%clk 0:02:54]} 2. d4 {[%clk 0:02:58]}  d5 {[%clk 0:02:52]} 3. Nc3 {[%clk 0:02:57]}  Nf6 {[%clk 0:02:52]} 4. Bg5 {[%clk 0:02:54]}  h6 {[%clk 0:02:49]} 5. Bxf6 {[%clk 0:02:53]}  Qxf6 {[%clk 0:02:50]} 6. Nf3 {[%clk 0:02:52]}  Bb4 {[%clk 0:02:48]} 7. exd5 {[%clk 0:02:48]}  exd5 {[%clk 0:02:42]} 8. Bb5+ {[%clk 0:02:46]}  c6 {[%clk 0:02:42]} 9. Bd3 {[%clk 0:02:46]}  O-O {[%clk 0:02:40]} 10. Ne5 {[%clk 0:02:41]}  Nd7 {[%clk 0:02:38]} 11. Nxd7 {[%clk 0:02:29]}  Bxd7 {[%clk 0:02:39]} 12. O-O {[%clk 0:02:28]}  Rfe8 {[%clk 0:02:39]} 13. Ne2 {[%clk 0:02:20]}  Bd6 {[%clk 0:02:39]} 14. Qd2 {[%clk 0:02:10]}  Re7 {[%clk 0:02:24]} 15. Rae1 {[%clk 0:02:06]}  Rae8 {[%clk 0:02:24]} 16. Ng3 {[%clk 0:02:04]}  Bf4 {[%clk 0:02:17]} 17. Qd1 {[%clk 0:01:59]}  g6 {[%clk 0:02:17]} 18. c3 {[%clk 0:01:58]}  h5 {[%clk 0:02:17]} 19. Rxe7 {[%clk 0:01:54]}  Rxe7 {[%clk 0:02:15]} 20. Re1 {[%clk 0:01:54]}  h4 {[%clk 0:01:55]} 21. Nf1 {[%clk 0:01:53]}  Rxe1 {[%clk 0:01:44]} 22. Qxe1 {[%clk 0:01:53]}  Bd6 {[%clk 0:01:40]} 23. b4 {[%clk 0:01:48]}  h3 {[%clk 0:01:38]} 24. g3 {[%clk 0:01:37]}  b6 {[%clk 0:01:37]} 25. Qe3 {[%clk 0:01:24]}  a5 {[%clk 0:01:36]} 26. a3 {[%clk 0:01:24]}  Kg7 {[%clk 0:01:25]} 27. Nd2 {[%clk 0:01:21]}  Bg4 {[%clk 0:01:16]} 28. Be2 {[%clk 0:01:18]}  Bxe2 {[%clk 0:01:04]} 29. Qxe2 {[%clk 0:01:18]}  Qf5 {[%clk 0:01:04]} 30. Nf1 {[%clk 0:01:13]}  c5 {[%clk 0:00:59]} 31. bxa5 {[%clk 0:01:05]}  cxd4 {[%clk 0:00:55]} 32. cxd4 {[%clk 0:00:23]}  bxa5 {[%clk 0:00:54]} 33. a4 {[%clk 0:00:22]}  Qb1 {[%clk 0:00:35]} 34. Qa6 {[%clk 0:00:17]}  Qb4 {[%clk 0:00:31]} 35. Qc6 {[%clk 0:00:14]}  Be7 {[%clk 0:00:26]} 36. Qxd5 {[%clk 0:00:14]}  Qxa4 {[%clk 0:00:26]} 37. Qe5+ {[%clk 0:00:01]}  Bf6 {[%clk 0:00:27]} 38. Qf4 {[%clk 0:00:01]}  Qxd4 {[%clk 0:00:26]} 39. Qc7 {[%clk 0:00:01]}  a4 {[%clk 0:00:24]} 40. Qc8 {[%clk 0:00:01]}  Qe4 {[%clk 0:00:21]} 0-1


[Site "https://www.chess.com"]

[Event "Titled Tuesday Blitz May 31 Early 2022"]
[White "Meunier-Pion, Jean"]
[Black "Marin Ramirez, Gerardo"]
[WhiteFideId "20685327"]
[BlackFideId "3901068"]
[WhiteElo "2124"]
[BlackElo "1920"]
[Result "1-0"]
[Round "04"]
[TimeControl "180+1"]
[Date "2022.06.01"]
[WhiteClock "0:00:03"]
[BlackClock "0:00:01"]

1. e4 {[%clk 0:03:00]}  c5 {[%clk 0:02:58]} 2. Nf3 {[%clk 0:03:01]}  d6 {[%clk 0:02:57]} 3. d4 {[%clk 0:03:01]}  cxd4 {[%clk 0:02:58]} 4. Nxd4 {[%clk 0:03:02]}  Nf6 {[%clk 0:02:57]} 5. Nc3 {[%clk 0:03:02]}  a6 {[%clk 0:02:57]} 6. h3 {[%clk 0:03:03]}  e6 {[%clk 0:02:52]} 7. g4 {[%clk 0:03:03]}  b5 {[%clk 0:02:51]} 8. Bg2 {[%clk 0:03:02]}  Bb7 {[%clk 0:02:51]} 9. g5 {[%clk 0:03:01]}  Nfd7 {[%clk 0:02:47]} 10. f4 {[%clk 0:02:56]}  Qc7 {[%clk 0:02:47]} 11. Be3 {[%clk 0:02:53]}  Nb6 {[%clk 0:02:43]} 12. Qe2 {[%clk 0:02:40]}  N8d7 {[%clk 0:02:43]} 13. O-O-O {[%clk 0:02:35]}  Be7 {[%clk 0:02:38]} 14. h4 {[%clk 0:02:30]}  Rc8 {[%clk 0:02:29]} 15. h5 {[%clk 0:02:28]}  Nc4 {[%clk 0:02:25]} 16. g6 {[%clk 0:02:18]}  Nxb2 {[%clk 0:02:23]} 17. gxf7+ {[%clk 0:02:19]}  Kxf7 {[%clk 0:02:21]} 18. Nxe6 {[%clk 0:01:05]}  Qxc3 {[%clk 0:02:17]} 19. Bd4 {[%clk 0:01:05]}  Qc4 {[%clk 0:01:38]} 20. Qxc4 {[%clk 0:00:37]}  Nxc4 {[%clk 0:01:31]} 21. Nxg7 {[%clk 0:00:37]}  Bf6 {[%clk 0:01:22]} 22. h6 {[%clk 0:00:21]}  Bxd4 {[%clk 0:01:15]} 23. Rxd4 {[%clk 0:00:21]}  Nf6 {[%clk 0:01:14]} 24. Re1 {[%clk 0:00:15]}  Rc7 {[%clk 0:01:01]} 25. Bh3 {[%clk 0:00:15]}  Bc8 {[%clk 0:00:55]} 26. Bg2 {[%clk 0:00:07]}  Ng4 {[%clk 0:00:50]} 27. Bf3 {[%clk 0:00:03]}  Nxh6 {[%clk 0:00:48]} 28. Rg1 {[%clk 0:00:03]}  Rg8 {[%clk 0:00:39]} 29. Bh5+ {[%clk 0:00:03]}  Kf8 {[%clk 0:00:38]} 30. e5 {[%clk 0:00:02]}  Rgxg7 {[%clk 0:00:36]} 31. Rf1 {[%clk 0:00:01]}  Bg4 {[%clk 0:00:27]} 32. exd6 {[%clk 0:00:02]}  Rcd7 {[%clk 0:00:27]} 33. Bxg4 {[%clk 0:00:02]}  Nxg4 {[%clk 0:00:26]} 34. Re1 {[%clk 0:00:02]}  Nf6 {[%clk 0:00:26]} 35. Rd3 {[%clk 0:00:01]}  Rxd6 {[%clk 0:00:23]} 36. Rh3 {[%clk 0:00:02]}  Kf7 {[%clk 0:00:19]} 37. Rh2 {[%clk 0:00:02]}  Re6 {[%clk 0:00:18]} 38. Rd1 {[%clk 0:00:02]}  Rg4 {[%clk 0:00:17]} 39. a4 {[%clk 0:00:02]}  Rxf4 {[%clk 0:00:15]} 40. axb5 {[%clk 0:00:01]}  axb5 {[%clk 0:00:14]} 41. Kb1 {[%clk 0:00:02]}  Re2 {[%clk 0:00:12]} 42. Rxe2 {[%clk 0:00:01]}  h5 {[%clk 0:00:10]} 43. Rde1 {[%clk 0:00:02]}  h4 {[%clk 0:00:10]} 44. Re7+ {[%clk 0:00:02]}  Kg6 {[%clk 0:00:10]} 45. Rg1+ {[%clk 0:00:03]}  Kf5 {[%clk 0:00:10]} 46. Reg7 {[%clk 0:00:03]}  h3 {[%clk 0:00:08]} 47. R7g5+ {[%clk 0:00:03]}  Ke4 {[%clk 0:00:08]} 48. Rxb5 {[%clk 0:00:03]}  Kf3 {[%clk 0:00:08]} 49. Rb3+ {[%clk 0:00:03]}  Ke2 {[%clk 0:00:05]} 50. Rxh3 {[%clk 0:00:02]}  Nd2+ {[%clk 0:00:04]} 51. Kb2 {[%clk 0:00:02]}  Rb4+ {[%clk 0:00:03]} 52. Ka3 {[%clk 0:00:03]}  Rd4 {[%clk 0:00:02]} 53. Rh2+ {[%clk 0:00:03]}  Ke3 {[%clk 0:00:01]} 54. Rg3+ {[%clk 0:00:03]}  Nf3 {[%clk 0:00:01]} 55. Rhh3 {[%clk 0:00:03]} 1-0


[Site "https://www.chess.com"]

[Event "Titled Tuesday Blitz May 31 Early 2022"]
[White "Namitbir Singh Walia"]
[Black "Kuderinov, Kirill"]
[WhiteFideId "35071068"]
[BlackFideId "13701568"]
[WhiteElo "1565"]
[BlackElo "2432"]
[Result "1/2-1/2"]
[Round "04"]
[TimeControl "180+1"]
[Date "2022.06.01"]
[WhiteClock "0:00:06"]
[BlackClock "0:00:24"]

1. d4 {[%clk 0:03:00]}  Nf6 {[%clk 0:02:58]} 2. c4 {[%clk 0:03:01]}  d5 {[%clk 0:02:58]} 3. cxd5 {[%clk 0:02:59]}  c6 {[%clk 0:02:58]} 4. dxc6 {[%clk 0:02:56]}  Nxc6 {[%clk 0:02:59]} 5. Nf3 {[%clk 0:02:57]}  e5 {[%clk 0:02:55]} 6. e3 {[%clk 0:02:40]}  exd4 {[%clk 0:02:52]} 7. Nxd4 {[%clk 0:02:37]}  Bg4 {[%clk 0:02:52]} 8. Be2 {[%clk 0:02:28]}  Bxe2 {[%clk 0:02:52]} 9. Nxe2 {[%clk 0:02:26]}  Qxd1+ {[%clk 0:02:53]} 10. Kxd1 {[%clk 0:02:27]}  O-O-O+ {[%clk 0:02:53]} 11. Ke1 {[%clk 0:02:12]}  Nb4 {[%clk 0:02:44]} 12. Na3 {[%clk 0:02:08]}  Nd3+ {[%clk 0:02:40]} 13. Kf1 {[%clk 0:02:08]}  Nf4 {[%clk 0:02:14]} 14. Nc3 {[%clk 0:01:51]}  Ne4 {[%clk 0:02:05]} 15. Nab5 {[%clk 0:01:21]}  a6 {[%clk 0:02:02]} 16. Nd4 {[%clk 0:01:14]}  Nxc3 {[%clk 0:01:57]} 17. bxc3 {[%clk 0:01:15]}  Nd5 {[%clk 0:01:58]} 18. Bd2 {[%clk 0:01:12]}  Nb6 {[%clk 0:01:56]} 19. Ke2 {[%clk 0:01:12]}  Nc4 {[%clk 0:01:55]} 20. a4 {[%clk 0:01:07]}  Bc5 {[%clk 0:01:53]} 21. Kd3 {[%clk 0:00:53]}  Ne5+ {[%clk 0:01:52]} 22. Ke2 {[%clk 0:00:48]}  g6 {[%clk 0:01:46]} 23. Bc1 {[%clk 0:00:47]}  Nc4 {[%clk 0:01:45]} 24. Kd3 {[%clk 0:00:41]}  Ne5+ {[%clk 0:01:43]} 25. Ke2 {[%clk 0:00:40]}  f5 {[%clk 0:01:44]} 26. Ba3 {[%clk 0:00:39]}  Bxa3 {[%clk 0:01:43]} 27. Rxa3 {[%clk 0:00:38]}  f4 {[%clk 0:01:44]} 28. exf4 {[%clk 0:00:29]}  Nc4 {[%clk 0:01:42]} 29. Rb3 {[%clk 0:00:22]}  Rhe8+ {[%clk 0:01:36]} 30. Kd3 {[%clk 0:00:22]}  Na5 {[%clk 0:01:37]} 31. Rb2 {[%clk 0:00:20]}  Re7 {[%clk 0:01:34]} 32. Rhb1 {[%clk 0:00:19]}  Nc6 {[%clk 0:01:32]} 33. Rd2 {[%clk 0:00:14]}  Red7 {[%clk 0:01:30]} 34. Kc4 {[%clk 0:00:13]}  Rc7 {[%clk 0:01:29]} 35. Kb3 {[%clk 0:00:11]}  Na5+ {[%clk 0:01:28]} 36. Kb4 {[%clk 0:00:11]}  b6 {[%clk 0:01:26]} 37. Rbd1 {[%clk 0:00:11]}  Rc4+ {[%clk 0:01:24]} 38. Ka3 {[%clk 0:00:11]}  Rxc3+ {[%clk 0:01:25]} 39. Kb2 {[%clk 0:00:12]}  Rc4 {[%clk 0:01:25]} 40. Nb3 {[%clk 0:00:12]}  Rxd2+ {[%clk 0:01:22]} 41. Rxd2 {[%clk 0:00:13]}  Rb4 {[%clk 0:01:23]} 42. Rd3 {[%clk 0:00:12]}  Rxa4 {[%clk 0:01:21]} 43. Nxa5 {[%clk 0:00:12]}  Rxa5 {[%clk 0:01:21]} 44. Rh3 {[%clk 0:00:11]}  Rf5 {[%clk 0:01:14]} 45. Rxh7 {[%clk 0:00:11]}  Rxf4 {[%clk 0:01:15]} 46. f3 {[%clk 0:00:11]}  a5 {[%clk 0:01:14]} 47. Ra7 {[%clk 0:00:11]}  Kb8 {[%clk 0:01:12]} 48. Rg7 {[%clk 0:00:10]}  Rf6 {[%clk 0:01:13]} 49. h4 {[%clk 0:00:10]}  b5 {[%clk 0:01:13]} 50. Kb3 {[%clk 0:00:10]}  Rc6 {[%clk 0:01:13]} 51. g4 {[%clk 0:00:08]}  Rf6 {[%clk 0:01:08]} 52. Kb2 {[%clk 0:00:08]}  a4 {[%clk 0:01:05]} 53. f4 {[%clk 0:00:08]}  b4 {[%clk 0:01:03]} 54. Ka2 {[%clk 0:00:07]}  Re6 {[%clk 0:00:58]} 55. f5 {[%clk 0:00:05]}  Re2+ {[%clk 0:00:57]} 56. Kb1 {[%clk 0:00:05]}  b3 {[%clk 0:00:54]} 57. Rxg6 {[%clk 0:00:06]}  Kb7 {[%clk 0:00:52]} 58. Rd6 {[%clk 0:00:04]}  a3 {[%clk 0:00:51]} 59. Rd1 {[%clk 0:00:04]}  Re4 {[%clk 0:00:38]} 60. Rf1 {[%clk 0:00:04]}  a2+ {[%clk 0:00:32]} 61. Kb2 {[%clk 0:00:03]}  Rxg4 {[%clk 0:00:28]} 62. f6 {[%clk 0:00:03]}  Rg2+ {[%clk 0:00:25]} 63. Kxb3 {[%clk 0:00:03]}  Rf2 {[%clk 0:00:26]} 64. Ra1 {[%clk 0:00:03]}  Rxf6 {[%clk 0:00:25]} 65. Rxa2 {[%clk 0:00:03]}  Rf3+ {[%clk 0:00:24]} 66. Kc4 {[%clk 0:00:03]}  Rf4+ {[%clk 0:00:24]} 67. Kd5 {[%clk 0:00:04]}  Rxh4 {[%clk 0:00:25]} 68. Rb2+ {[%clk 0:00:04]}  Kc7 {[%clk 0:00:26]} 69. Rc2+ {[%clk 0:00:05]}  Kd7 {[%clk 0:00:25]} 70. Rb2 {[%clk 0:00:05]}  Rh5+ {[%clk 0:00:26]} 71. Ke4 {[%clk 0:00:05]}  Kc6 {[%clk 0:00:26]} 72. Rc2+ {[%clk 0:00:05]}  Kd6 {[%clk 0:00:26]} 73. Rd2+ {[%clk 0:00:06]}  Ke6 {[%clk 0:00:27]} 74. Rb2 {[%clk 0:00:06]}  Rh4+ {[%clk 0:00:28]} 75. Kf3 {[%clk 0:00:07]}  Ra4 {[%clk 0:00:28]} 76. Rb6+ {[%clk 0:00:07]}  Kd5 {[%clk 0:00:28]} 77. Rb5+ {[%clk 0:00:07]}  Kd4 {[%clk 0:00:29]} 78. Rf5 {[%clk 0:00:06]}  Ra1 {[%clk 0:00:29]} 79. Rf4+ {[%clk 0:00:06]}  Ke5 {[%clk 0:00:26]} 80. Re4+ {[%clk 0:00:05]}  Kd5 {[%clk 0:00:26]} 81. Rh4 {[%clk 0:00:05]}  Rf1+ {[%clk 0:00:26]} 82. Ke2 {[%clk 0:00:05]}  Ra1 {[%clk 0:00:26]} 83. Kd2 {[%clk 0:00:05]}  Ra2+ {[%clk 0:00:26]} 84. Kc3 {[%clk 0:00:06]}  Ra3+ {[%clk 0:00:26]} 85. Kb2 {[%clk 0:00:06]}  Rg3 {[%clk 0:00:25]} 86. Kc2 {[%clk 0:00:06]}  Rg2+ {[%clk 0:00:25]} 87. Kd3 {[%clk 0:00:06]}  Rg3+ {[%clk 0:00:26]} 88. Ke2 {[%clk 0:00:06]}  Rg5 {[%clk 0:00:27]} 89. Kf2 {[%clk 0:00:06]}  Ke5 {[%clk 0:00:22]} 90. Ke3 {[%clk 0:00:06]}  Kf5 {[%clk 0:00:23]} 91. Rf4+ {[%clk 0:00:05]}  Ke5 {[%clk 0:00:22]} 92. Rh4 {[%clk 0:00:05]}  Kd5 {[%clk 0:00:23]} 93. Kf3 {[%clk 0:00:05]}  Rf5+ {[%clk 0:00:23]} 94. Ke3 {[%clk 0:00:05]}  Rg5 {[%clk 0:00:24]} 95. Kf3 {[%clk 0:00:05]}  Ke5 {[%clk 0:00:24]} 96. Ke3 {[%clk 0:00:06]} 1/2-1/2


[Site "https://www.chess.com"]

[Event "Titled Tuesday Blitz May 31 Early 2022"]
[White "Nasir, Zehn"]
[Black "Livaic, Leon"]
[WhiteFideId "2613239"]
[BlackFideId "14531534"]
[WhiteElo "1993"]
[BlackElo "2540"]
[Result "0-1"]
[Round "04"]
[TimeControl "180+1"]
[Date "2022.06.01"]
[WhiteClock "0:00:05"]
[BlackClock "0:00:35"]

1. d4 {[%clk 0:03:00]}  Nf6 {[%clk 0:02:59]} 2. Bf4 {[%clk 0:02:58]}  d5 {[%clk 0:02:59]} 3. e3 {[%clk 0:02:58]}  c5 {[%clk 0:02:59]} 4. c3 {[%clk 0:02:58]}  cxd4 {[%clk 0:03:00]} 5. exd4 {[%clk 0:02:58]}  Nc6 {[%clk 0:03:01]} 6. Nd2 {[%clk 0:02:57]}  Bg4 {[%clk 0:03:00]} 7. Qb3 {[%clk 0:02:55]}  Qc8 {[%clk 0:02:52]} 8. Ngf3 {[%clk 0:02:52]}  e6 {[%clk 0:02:51]} 9. Ne5 {[%clk 0:02:45]}  Nxe5 {[%clk 0:02:45]} 10. dxe5 {[%clk 0:02:36]}  Nd7 {[%clk 0:02:45]} 11. c4 {[%clk 0:01:57]}  Be7 {[%clk 0:02:12]} 12. cxd5 {[%clk 0:01:44]}  exd5 {[%clk 0:02:13]} 13. Qxd5 {[%clk 0:01:33]}  O-O {[%clk 0:02:13]} 14. Bd3 {[%clk 0:01:16]}  Nc5 {[%clk 0:02:12]} 15. Bb1 {[%clk 0:01:12]}  Rd8 {[%clk 0:02:08]} 16. Qc4 {[%clk 0:01:06]}  b5 {[%clk 0:02:02]} 17. Qc3 {[%clk 0:00:51]}  Ne6 {[%clk 0:01:36]} 18. Be3 {[%clk 0:00:43]}  Qxc3 {[%clk 0:01:13]} 19. bxc3 {[%clk 0:00:43]}  Ba3 {[%clk 0:01:14]} 20. Be4 {[%clk 0:00:36]}  Rac8 {[%clk 0:01:09]} 21. h3 {[%clk 0:00:29]}  Bh5 {[%clk 0:01:09]} 22. g4 {[%clk 0:00:29]}  Bg6 {[%clk 0:01:09]} 23. Bxg6 {[%clk 0:00:27]}  hxg6 {[%clk 0:01:10]} 24. Ne4 {[%clk 0:00:19]}  Rc4 {[%clk 0:01:04]} 25. f3 {[%clk 0:00:18]}  Bb2 {[%clk 0:00:58]} 26. Rb1 {[%clk 0:00:17]}  Bxc3+ {[%clk 0:00:59]} 27. Nxc3 {[%clk 0:00:18]}  Rxc3 {[%clk 0:00:59]} 28. Bxa7 {[%clk 0:00:14]}  Rxf3 {[%clk 0:00:55]} 29. Ke2 {[%clk 0:00:13]}  Ra3 {[%clk 0:00:53]} 30. Be3 {[%clk 0:00:09]}  Rxa2+ {[%clk 0:00:42]} 31. Kf3 {[%clk 0:00:09]}  Ra3 {[%clk 0:00:36]} 32. Ke2 {[%clk 0:00:06]}  Rdd3 {[%clk 0:00:35]} 33. Bd2 {[%clk 0:00:05]}  Nd4+ {[%clk 0:00:35]} 34. Kd1 {[%clk 0:00:04]}  Ra2 {[%clk 0:00:34]} 35. Rh2 {[%clk 0:00:05]}  Nf3 {[%clk 0:00:34]} 36. Rf2 {[%clk 0:00:04]}  Rdxd2+ {[%clk 0:00:34]} 37. Rxd2 {[%clk 0:00:04]}  Rxd2+ {[%clk 0:00:35]} 38. Kc1 {[%clk 0:00:05]}  Rd5 {[%clk 0:00:35]} 39. Rb3 {[%clk 0:00:05]}  Nxe5 {[%clk 0:00:35]} 0-1


[Site "https://www.chess.com"]